[Event "Titled Tuesday Blitz November 07 Early 2023"]
[White "Samarth J Rao"]
[Black "Kozak, Antoni"]
[WhiteFideId "46652370"]
[BlackFideId "21832030"]
[WhiteElo "2067"]
[BlackElo "2799"]
[Result "0-1"]
[Round "4"]
[TimeControl "180+1"]
[Date "2023.11.07"]
[WhiteClock "0:00:00"]
[BlackClock "0:00:03"]
[Board "37"]

1. e4 {[%clk 0:02:50]}  c5 {[%clk 0:02:58]} 2. Nf3 {[%clk 0:02:49]}  Nc6 {[%clk 0:02:59]} 3. d4 {[%clk 0:02:47]}  cxd4 {[%clk 0:02:59]} 4. Nxd4 {[%clk 0:02:48]}  e5 {[%clk 0:02:59]} 5. Nb5 {[%clk 0:02:48]}  d6 {[%clk 0:02:59]} 6. N1c3 {[%clk 0:02:48]}  a6 {[%clk 0:02:54]} 7. Na3 {[%clk 0:02:48]}  b5 {[%clk 0:02:50]} 8. Nd5 {[%clk 0:02:49]}  Nge7 {[%clk 0:02:50]} 9. Bg5 {[%clk 0:02:34]}  f6 {[%clk 0:02:43]} 10. Qh5+ {[%clk 0:02:09]}  g6 {[%clk 0:02:18]} 11. Nxf6+ {[%clk 0:01:57]}  Kf7 {[%clk 0:02:18]} 12. Qf3 {[%clk 0:01:49]}  Nd4 {[%clk 0:02:17]} 13. Qd1 {[%clk 0:01:30]}  h6 {[%clk 0:02:16]} 14. Be3 {[%clk 0:01:13]}  Kxf6 {[%clk 0:01:41]} 15. Bxd4 {[%clk 0:01:12]}  exd4 {[%clk 0:01:35]} 16. Qxd4+ {[%clk 0:01:09]}  Kf7 {[%clk 0:01:35]} 17. Qxh8 {[%clk 0:00:59]}  Qa5+ {[%clk 0:01:15]} 18. Qc3 {[%clk 0:00:51]}  b4 {[%clk 0:00:44]} 19. Qf3+ {[%clk 0:00:41]}  Kg8 {[%clk 0:00:36]} 20. Bc4+ {[%clk 0:00:27]}  d5 {[%clk 0:00:32]} 21. exd5 {[%clk 0:00:25]}  bxa3+ {[%clk 0:00:33]} 22. c3 {[%clk 0:00:19]}  Bb7 {[%clk 0:00:15]} 23. b4 {[%clk 0:00:14]}  Qc7 {[%clk 0:00:12]} 24. Bb3 {[%clk 0:00:14]}  Qd6 {[%clk 0:00:12]} 25. Rd1 {[%clk 0:00:13]}  Nf5 {[%clk 0:00:10]} 26. O-O {[%clk 0:00:13]}  Bg7 {[%clk 0:00:10]} 27. Rfe1 {[%clk 0:00:10]}  Kh7 {[%clk 0:00:10]} 28. Re6 {[%clk 0:00:10]}  Qd8 {[%clk 0:00:11]} 29. Qg4 {[%clk 0:00:09]}  Qg5 {[%clk 0:00:09]} 30. Qxg5 {[%clk 0:00:09]}  hxg5 {[%clk 0:00:10]} 31. d6 {[%clk 0:00:07]}  Rd8 {[%clk 0:00:09]} 32. c4 {[%clk 0:00:07]}  Bc6 {[%clk 0:00:07]} 33. c5 {[%clk 0:00:07]}  Bd7 {[%clk 0:00:07]} 34. Re7 {[%clk 0:00:07]}  Kh6 {[%clk 0:00:04]} 35. g4 {[%clk 0:00:02]}  Nd4 {[%clk 0:00:04]} 36. Rxd4 {[%clk 0:00:01]}  Bxd4 {[%clk 0:00:04]} 37. Be6 {[%clk 0:00:00]}  Bb5 {[%clk 0:00:03]} 0-1


[Site "https://www.chess.com"]

[Event "Titled Tuesday Blitz November 07 Early 2023"]
[White "Le, Tuan Minh"]
[Black "Dowgird, Filip"]
[WhiteFideId "12401153"]
[BlackFideId "1121235"]
[WhiteElo "3071"]
[BlackElo "2651"]
[Result "1-0"]
[Round "4"]
[TimeControl "180+1"]
[Date "2023.11.07"]
[WhiteClock "0:00:06"]
[BlackClock "0:00:03"]
[Board "38"]

1. d4 {[%clk 0:03:00]}  d6 {[%clk 0:02:59]} 2. e4 {[%clk 0:03:00]}  Nf6 {[%clk 0:02:59]} 3. Nc3 {[%clk 0:03:01]}  c6 {[%clk 0:03:00]} 4. Nf3 {[%clk 0:02:51]}  Bg4 {[%clk 0:02:59]} 5. h3 {[%clk 0:02:51]}  Bh5 {[%clk 0:02:59]} 6. Be2 {[%clk 0:02:49]}  e6 {[%clk 0:02:59]} 7. O-O {[%clk 0:02:49]}  d5 {[%clk 0:02:55]} 8. e5 {[%clk 0:02:43]}  Nfd7 {[%clk 0:02:55]} 9. Nd2 {[%clk 0:02:35]}  Bxe2 {[%clk 0:02:42]} 10. Nxe2 {[%clk 0:02:35]}  c5 {[%clk 0:02:43]} 11. c3 {[%clk 0:02:36]}  Nc6 {[%clk 0:02:43]} 12. f4 {[%clk 0:02:33]}  cxd4 {[%clk 0:02:38]} 13. cxd4 {[%clk 0:02:33]}  g6 {[%clk 0:02:35]} 14. Nf3 {[%clk 0:02:30]}  h5 {[%clk 0:02:34]} 15. Be3 {[%clk 0:02:15]}  Qb6 {[%clk 0:02:32]} 16. Qd2 {[%clk 0:01:50]}  Bb4 {[%clk 0:02:25]} 17. Qc2 {[%clk 0:01:50]}  Rc8 {[%clk 0:02:08]} 18. Rac1 {[%clk 0:01:35]}  Be7 {[%clk 0:02:02]} 19. Qd2 {[%clk 0:01:23]}  Qb4 {[%clk 0:01:55]} 20. Rc3 {[%clk 0:01:19]}  Kf8 {[%clk 0:01:39]} 21. Ng5 {[%clk 0:00:58]}  Kg7 {[%clk 0:01:35]} 22. Kh2 {[%clk 0:00:53]}  Qb5 {[%clk 0:01:28]} 23. Rb3 {[%clk 0:00:48]}  Qa6 {[%clk 0:01:25]} 24. Bf2 {[%clk 0:00:34]}  Bxg5 {[%clk 0:01:14]} 25. fxg5 {[%clk 0:00:34]}  Ne7 {[%clk 0:01:01]} 26. Ra3 {[%clk 0:00:22]}  Qb6 {[%clk 0:01:01]} 27. Be1 {[%clk 0:00:20]}  Nf5 {[%clk 0:00:57]} 28. Ng3 {[%clk 0:00:19]}  a6 {[%clk 0:00:35]} 29. Nxf5+ {[%clk 0:00:19]}  gxf5 {[%clk 0:00:36]} 30. g6 {[%clk 0:00:18]}  fxg6 {[%clk 0:00:32]} 31. Qg5 {[%clk 0:00:17]}  Qd8 {[%clk 0:00:32]} 32. Qd2 {[%clk 0:00:14]}  Qe7 {[%clk 0:00:24]} 33. Rb3 {[%clk 0:00:13]}  Rc7 {[%clk 0:00:20]} 34. Qe2 {[%clk 0:00:08]}  b5 {[%clk 0:00:18]} 35. Rg3 {[%clk 0:00:06]}  h4 {[%clk 0:00:18]} 36. Rc3 {[%clk 0:00:06]}  Rxc3 {[%clk 0:00:18]} 37. Bxc3 {[%clk 0:00:06]}  Nb6 {[%clk 0:00:18]} 38. b3 {[%clk 0:00:06]}  Qc7 {[%clk 0:00:17]} 39. Bb4 {[%clk 0:00:06]}  Rc8 {[%clk 0:00:13]} 40. Qd2 {[%clk 0:00:06]}  Qd8 {[%clk 0:00:13]} 41. Ba5 {[%clk 0:00:06]}  Rc6 {[%clk 0:00:13]} 42. Rc1 {[%clk 0:00:06]}  Qd7 {[%clk 0:00:09]} 43. Bxb6 {[%clk 0:00:05]}  Rxb6 {[%clk 0:00:09]} 44. Qg5 {[%clk 0:00:06]}  Qf7 {[%clk 0:00:09]} 45. Rc8 {[%clk 0:00:06]}  Rb7 {[%clk 0:00:04]} 46. Qd8 {[%clk 0:00:06]}  Kh6 {[%clk 0:00:03]} 47. Qxh4+ {[%clk 0:00:06]} 1-0


[Site "https://www.chess.com"]

[Event "Titled Tuesday Blitz November 07 Early 2023"]
[White "Janaszak, Dawid"]
[Black "Tsydypov, Zhamsaran"]
[WhiteFideId "1119206"]
[BlackFideId "4108566"]
[WhiteElo "2646"]
[BlackElo "3011"]
[Result "0-1"]
[Round "4"]
[TimeControl "180+1"]
[Date "2023.11.07"]
[WhiteClock "0:00:00"]
[BlackClock "0:01:37"]
[Board "39"]

1. e4 {[%clk 0:03:00]}  c6 {[%clk 0:02:58]} 2. d4 {[%clk 0:03:00]}  d5 {[%clk 0:02:59]} 3. exd5 {[%clk 0:03:01]}  cxd5 {[%clk 0:02:59]} 4. Bd3 {[%clk 0:03:02]}  Nc6 {[%clk 0:02:58]} 5. c3 {[%clk 0:03:02]}  g6 {[%clk 0:02:59]} 6. Nf3 {[%clk 0:03:00]}  Bg7 {[%clk 0:02:59]} 7. O-O {[%clk 0:03:01]}  e6 {[%clk 0:03:00]} 8. Bf4 {[%clk 0:02:50]}  Nge7 {[%clk 0:02:59]} 9. Nbd2 {[%clk 0:02:48]}  O-O {[%clk 0:03:00]} 10. Re1 {[%clk 0:02:44]}  f6 {[%clk 0:03:00]} 11. h3 {[%clk 0:02:29]}  Nf5 {[%clk 0:02:58]} 12. Bh2 {[%clk 0:02:20]}  Re8 {[%clk 0:02:58]} 13. b4 {[%clk 0:02:15]}  a6 {[%clk 0:02:57]} 14. a4 {[%clk 0:02:15]}  Bd7 {[%clk 0:02:53]} 15. Qb3 {[%clk 0:02:13]}  Bh6 {[%clk 0:02:51]} 16. Nf1 {[%clk 0:02:09]}  Kh8 {[%clk 0:02:46]} 17. Ne3 {[%clk 0:02:03]}  Nxe3 {[%clk 0:02:45]} 18. fxe3 {[%clk 0:02:04]}  Rc8 {[%clk 0:02:26]} 19. e4 {[%clk 0:02:03]}  Ne7 {[%clk 0:02:26]} 20. e5 {[%clk 0:01:58]}  f5 {[%clk 0:02:26]} 21. Bg3 {[%clk 0:01:50]}  g5 {[%clk 0:02:26]} 22. c4 {[%clk 0:01:36]}  Rg8 {[%clk 0:02:12]} 23. cxd5 {[%clk 0:01:26]}  Nxd5 {[%clk 0:02:12]} 24. Bxf5 {[%clk 0:01:23]}  Rc3 {[%clk 0:02:12]} 25. Qa2 {[%clk 0:01:15]}  Nxb4 {[%clk 0:02:12]} 26. Qb2 {[%clk 0:01:10]}  Nd5 {[%clk 0:02:10]} 27. Be4 {[%clk 0:01:02]}  Qb6 {[%clk 0:02:08]} 28. Qxb6 {[%clk 0:00:56]}  Nxb6 {[%clk 0:02:09]} 29. Bxb7 {[%clk 0:00:57]}  g4 {[%clk 0:02:09]} 30. hxg4 {[%clk 0:00:54]}  Rxg4 {[%clk 0:02:08]} 31. Kh2 {[%clk 0:00:52]}  Nxa4 {[%clk 0:02:01]} 32. d5 {[%clk 0:00:44]}  Nc5 {[%clk 0:01:59]} 33. dxe6 {[%clk 0:00:35]}  Bxe6 {[%clk 0:01:59]} 34. Ba8 {[%clk 0:00:30]}  Rc2 {[%clk 0:01:53]} 35. Bh4 {[%clk 0:00:20]}  Rgxg2+ {[%clk 0:01:46]} 36. Kh1 {[%clk 0:00:20]}  Rg8 {[%clk 0:01:46]} 37. Bf6+ {[%clk 0:00:14]}  Bg7 {[%clk 0:01:45]} 38. Bxg7+ {[%clk 0:00:14]}  Rxg7 {[%clk 0:01:37]} 39. Nd4 {[%clk 0:00:13]}  Rc4 {[%clk 0:01:37]} 40. Rad1 {[%clk 0:00:09]}  Nb3 {[%clk 0:01:35]} 41. Re4 {[%clk 0:00:05]}  Rd7 {[%clk 0:01:35]} 42. Rb1 {[%clk 0:00:02]}  Rcxd4 {[%clk 0:01:35]} 43. Rxd4 {[%clk 0:00:02]}  Rxd4 {[%clk 0:01:35]} 44. Bf3 {[%clk 0:00:01]}  a5 {[%clk 0:01:36]} 45. Kg2 {[%clk 0:00:01]}  a4 {[%clk 0:01:36]} 46. Kf2 {[%clk 0:00:02]}  a3 {[%clk 0:01:36]} 47. Ke3 {[%clk 0:00:00]}  a2 {[%clk 0:01:37]} 0-1


[Site "https://www.chess.com"]

[Event "Titled Tuesday Blitz November 07 Early 2023"]
[White "Galchenko, Matvey"]
[Black "Asavasaetakul, Chawit"]
[WhiteFideId "24175480"]
[BlackFideId "6204856"]
[WhiteElo "2950"]
[BlackElo "2631"]
[Result "0-1"]
[Round "4"]
[TimeControl "180+1"]
[Date "2023.11.07"]
[WhiteClock "0:01:34"]
[BlackClock "0:02:40"]
[Board "43"]

1. e4 {[%clk 0:02:58]}  d5 {[%clk 0:02:59]} 2. exd5 {[%clk 0:02:58]}  Nf6 {[%clk 0:02:59]} 3. d4 {[%clk 0:02:58]}  Bg4 {[%clk 0:02:58]} 4. f3 {[%clk 0:02:55]}  Bf5 {[%clk 0:02:58]} 5. c4 {[%clk 0:02:44]}  e6 {[%clk 0:02:58]} 6. g4 {[%clk 0:02:44]}  Bxb1 {[%clk 0:02:54]} 7. Rxb1 {[%clk 0:02:44]}  exd5 {[%clk 0:02:55]} 8. Kf2 {[%clk 0:02:19]}  Be7 {[%clk 0:02:51]} 9. h4 {[%clk 0:02:16]}  O-O {[%clk 0:02:50]} 10. h5 {[%clk 0:02:15]}  Nc6 {[%clk 0:02:48]} 11. Be3 {[%clk 0:01:53]}  dxc4 {[%clk 0:02:46]} 12. Bxc4 {[%clk 0:01:52]}  Nd5 {[%clk 0:02:46]} 13. Ne2 {[%clk 0:01:48]}  Bh4+ {[%clk 0:02:41]} 14. Ng3 {[%clk 0:01:37]}  Bxg3+ {[%clk 0:02:40]} 15. Kxg3 {[%clk 0:01:36]}  Nxe3 {[%clk 0:02:40]} 16. Qd3 {[%clk 0:01:36]}  Nxc4 {[%clk 0:02:40]} 17. Qxc4 {[%clk 0:01:34]}  Qxd4 {[%clk 0:02:40]} 0-1


[Site "https://www.chess.com"]

[Event "Titled Tuesday Blitz November 07 Early 2023"]
[White "Gubajdullin, Alexei"]
[Black "Yeletsky, Ivan"]
[WhiteFideId "4141202"]
[BlackFideId "24180327"]
[WhiteElo "2627"]
[BlackElo "2947"]
[Result "1/2-1/2"]
[Round "4"]
[TimeControl "180+1"]
[Date "2023.11.07"]
[WhiteClock "0:00:10"]
[BlackClock "0:00:05"]
[Board "44"]

1. d4 {[%clk 0:02:58]}  Nf6 {[%clk 0:03:00]} 2. Nf3 {[%clk 0:02:58]}  g6 {[%clk 0:03:00]} 3. Bf4 {[%clk 0:02:58]}  Bg7 {[%clk 0:03:01]} 4. e3 {[%clk 0:02:58]}  O-O {[%clk 0:03:01]} 5. Be2 {[%clk 0:02:59]}  d6 {[%clk 0:03:02]} 6. O-O {[%clk 0:02:59]}  Nc6 {[%clk 0:03:02]} 7. h3 {[%clk 0:02:59]}  e5 {[%clk 0:03:03]} 8. Bh2 {[%clk 0:02:59]}  exd4 {[%clk 0:03:03]} 9. exd4 {[%clk 0:02:59]}  b6 {[%clk 0:03:04]} 10. a4 {[%clk 0:02:57]}  Bb7 {[%clk 0:03:04]} 11. c3 {[%clk 0:02:55]}  Qd7 {[%clk 0:03:04]} 12. Re1 {[%clk 0:02:55]}  Rfe8 {[%clk 0:03:04]} 13. Nbd2 {[%clk 0:02:54]}  a6 {[%clk 0:03:04]} 14. Bc4 {[%clk 0:02:48]}  Rxe1+ {[%clk 0:02:52]} 15. Qxe1 {[%clk 0:02:48]}  Ne7 {[%clk 0:02:52]} 16. Qf1 {[%clk 0:02:48]}  Bh6 {[%clk 0:02:48]} 17. Bb3 {[%clk 0:02:27]}  Ned5 {[%clk 0:02:39]} 18. Re1 {[%clk 0:02:26]}  b5 {[%clk 0:02:34]} 19. axb5 {[%clk 0:02:22]}  axb5 {[%clk 0:02:35]} 20. h4 {[%clk 0:02:18]}  Bc6 {[%clk 0:02:14]} 21. Ng5 {[%clk 0:02:14]}  Re8 {[%clk 0:01:32]} 22. f3 {[%clk 0:01:50]}  Kg7 {[%clk 0:01:11]} 23. Nde4 {[%clk 0:01:47]}  Re7 {[%clk 0:01:07]} 24. Nxf6 {[%clk 0:01:20]}  Nxf6 {[%clk 0:01:07]} 25. Rxe7 {[%clk 0:01:19]}  Qxe7 {[%clk 0:01:08]} 26. Nxf7 {[%clk 0:01:19]}  Be3+ {[%clk 0:00:59]} 27. Kh1 {[%clk 0:01:19]}  h6 {[%clk 0:00:55]} 28. Qe1 {[%clk 0:01:14]}  Kf8 {[%clk 0:00:43]} 29. Bg1 {[%clk 0:00:55]}  Bf4 {[%clk 0:00:29]} 30. Qxe7+ {[%clk 0:00:41]}  Kxe7 {[%clk 0:00:30]} 31. Nh8 {[%clk 0:00:41]}  Be8 {[%clk 0:00:30]} 32. Bc2 {[%clk 0:00:41]}  g5 {[%clk 0:00:27]} 33. hxg5 {[%clk 0:00:39]}  hxg5 {[%clk 0:00:28]} 34. Ng6+ {[%clk 0:00:35]}  Bxg6 {[%clk 0:00:28]} 35. Bxg6 {[%clk 0:00:34]}  Bc1 {[%clk 0:00:29]} 36. b3 {[%clk 0:00:32]}  Nd5 {[%clk 0:00:25]} 37. c4 {[%clk 0:00:32]}  bxc4 {[%clk 0:00:26]} 38. bxc4 {[%clk 0:00:32]}  Nf4 {[%clk 0:00:27]} 39. Be4 {[%clk 0:00:29]}  Ne2 {[%clk 0:00:27]} 40. Bf2 {[%clk 0:00:29]}  Bb2 {[%clk 0:00:21]} 41. d5 {[%clk 0:00:29]}  Be5 {[%clk 0:00:19]} 42. Be3 {[%clk 0:00:28]}  Kf6 {[%clk 0:00:15]} 43. Bd3 {[%clk 0:00:27]}  Nf4 {[%clk 0:00:10]} 44. Bf1 {[%clk 0:00:26]}  Nh5 {[%clk 0:00:11]} 45. Kg1 {[%clk 0:00:25]}  Bg3 {[%clk 0:00:10]} 46. Bd3 {[%clk 0:00:24]}  Nf4 {[%clk 0:00:10]} 47. Bd4+ {[%clk 0:00:23]}  Kf7 {[%clk 0:00:08]} 48. Bf1 {[%clk 0:00:23]}  Ke7 {[%clk 0:00:06]} 49. Ba7 {[%clk 0:00:21]}  Ng6 {[%clk 0:00:05]} 50. Be3 {[%clk 0:00:20]}  Nf4 {[%clk 0:00:04]} 51. Bd2 {[%clk 0:00:19]}  Kd7 {[%clk 0:00:05]} 52. Be3 {[%clk 0:00:18]}  c6 {[%clk 0:00:05]} 53. dxc6+ {[%clk 0:00:18]}  Kxc6 {[%clk 0:00:06]} 54. Bd4 {[%clk 0:00:18]}  Ne6 {[%clk 0:00:05]} 55. Bf6 {[%clk 0:00:17]}  Kc5 {[%clk 0:00:03]} 56. Bd3 {[%clk 0:00:17]}  Be5 {[%clk 0:00:03]} 57. Be7 {[%clk 0:00:17]}  Nf4 {[%clk 0:00:03]} 58. Bf1 {[%clk 0:00:14]}  Kd4 {[%clk 0:00:03]} 59. Bxg5 {[%clk 0:00:14]}  Nd3 {[%clk 0:00:03]} 60. Bxd3 {[%clk 0:00:11]}  Kxd3 {[%clk 0:00:04]} 61. Be7 {[%clk 0:00:11]}  Kxc4 {[%clk 0:00:04]} 62. Kf2 {[%clk 0:00:11]}  d5 {[%clk 0:00:04]} 63. Ke2 {[%clk 0:00:11]}  d4 {[%clk 0:00:04]} 64. Bg5 {[%clk 0:00:11]}  d3+ {[%clk 0:00:04]} 65. Kd1 {[%clk 0:00:11]}  Kd4 {[%clk 0:00:03]} 66. g4 {[%clk 0:00:11]}  Bd6 {[%clk 0:00:02]} 67. Bd2 {[%clk 0:00:11]}  Be5 {[%clk 0:00:03]} 68. Ke1 {[%clk 0:00:11]}  Kd5 {[%clk 0:00:03]} 69. Kf2 {[%clk 0:00:12]}  Bd4+ {[%clk 0:00:03]} 70. Kg3 {[%clk 0:00:12]}  Kc4 {[%clk 0:00:04]} 71. f4 {[%clk 0:00:11]}  Bc3 {[%clk 0:00:04]} 72. Be3 {[%clk 0:00:10]}  Bd4 {[%clk 0:00:04]} 73. Bd2 {[%clk 0:00:10]}  Bc3 {[%clk 0:00:05]} 74. Be3 {[%clk 0:00:09]}  Bd4 {[%clk 0:00:05]} 75. Bd2 {[%clk 0:00:10]} 1/2-1/2


[Site "https://www.chess.com"]

[Event "Titled Tuesday Blitz November 07 Early 2023"]
[White "Kovalev, Vladislav"]
[Black "JuniorJumper"]
[WhiteFideId "13504398"]
[WhiteElo "2919"]
[BlackElo "2622"]
[Result "1-0"]
[Round "4"]
[TimeControl "180+1"]
[Date "2023.11.07"]
[WhiteClock "0:01:30"]
[BlackClock "0:00:02"]
[Board "46"]

1. e4 {[%clk 0:02:58]}  e5 {[%clk 0:02:55]} 2. Nf3 {[%clk 0:02:58]}  Nc6 {[%clk 0:02:56]} 3. Bb5 {[%clk 0:02:58]}  Nge7 {[%clk 0:02:52]} 4. O-O {[%clk 0:02:56]}  g6 {[%clk 0:02:52]} 5. c3 {[%clk 0:02:51]}  a6 {[%clk 0:02:51]} 6. Ba4 {[%clk 0:02:50]}  Bg7 {[%clk 0:02:50]} 7. d4 {[%clk 0:02:50]}  exd4 {[%clk 0:02:46]} 8. cxd4 {[%clk 0:02:51]}  b5 {[%clk 0:02:46]} 9. Bb3 {[%clk 0:02:44]}  O-O {[%clk 0:02:46]} 10. Nc3 {[%clk 0:02:43]}  d6 {[%clk 0:02:44]} 11. h3 {[%clk 0:02:43]}  h6 {[%clk 0:02:43]} 12. a4 {[%clk 0:02:23]}  b4 {[%clk 0:02:31]} 13. Nd5 {[%clk 0:02:23]}  Bb7 {[%clk 0:02:05]} 14. a5 {[%clk 0:02:13]}  Nxd5 {[%clk 0:01:44]} 15. Bxd5 {[%clk 0:02:12]}  Qd7 {[%clk 0:01:44]} 16. Qa4 {[%clk 0:02:02]}  Qe8 {[%clk 0:01:20]} 17. Be3 {[%clk 0:01:53]}  Rb8 {[%clk 0:01:09]} 18. Rfc1 {[%clk 0:01:50]}  Nd8 {[%clk 0:00:48]} 19. Qxe8 {[%clk 0:01:45]}  Rxe8 {[%clk 0:00:48]} 20. Rxc7 {[%clk 0:01:46]}  Bxd5 {[%clk 0:00:39]} 21. exd5 {[%clk 0:01:46]}  Rb5 {[%clk 0:00:39]} 22. Ra7 {[%clk 0:01:46]}  Rxd5 {[%clk 0:00:29]} 23. Rxa6 {[%clk 0:01:46]}  Ne6 {[%clk 0:00:11]} 24. Rb6 {[%clk 0:01:46]}  Nc7 {[%clk 0:00:04]} 25. Rxb4 {[%clk 0:01:33]}  Ra8 {[%clk 0:00:03]} 26. Rb7 {[%clk 0:01:33]}  Ne6 {[%clk 0:00:02]} 27. a6 {[%clk 0:01:31]}  Ng5 {[%clk 0:00:01]} 28. Nxg5 {[%clk 0:01:30]}  hxg5 {[%clk 0:00:02]} 29. a7 {[%clk 0:01:31]}  Kh7 {[%clk 0:00:03]} 30. Rb8 {[%clk 0:01:31]}  Rxa7 {[%clk 0:00:03]} 31. Rxa7 {[%clk 0:01:31]}  Rxd4 {[%clk 0:00:02]} 32. Bxd4 {[%clk 0:01:31]}  Bxd4 {[%clk 0:00:03]} 33. Rxf7+ {[%clk 0:01:31]}  Kh6 {[%clk 0:00:04]} 34. g4 {[%clk 0:01:30]}  d5 {[%clk 0:00:02]} 35. Rbb7 {[%clk 0:01:30]}  Bg7 {[%clk 0:00:02]} 36. Rxg7 {[%clk 0:01:29]}  d4 {[%clk 0:00:02]} 37. Rh7# {[%clk 0:01:30]} 1-0


[Site "https://www.chess.com"]

[Event "Titled Tuesday Blitz November 07 Early 2023"]
[White "Ashraf, Artin"]
[Black "Adewumi, Tanitoluwa"]
[WhiteFideId "22514805"]
[BlackFideId "30966396"]
[WhiteElo "2889"]
[BlackElo "2619"]
[Result "0-1"]
[Round "4"]
[TimeControl "180+1"]
[Date "2023.11.07"]
[WhiteClock "0:00:00"]
[BlackClock "0:00:04"]
[Board "47"]

1. c4 {[%clk 0:03:00]}  e5 {[%clk 0:02:16]} 2. Nc3 {[%clk 0:02:56]}  Nc6 {[%clk 0:02:15]} 3. e3 {[%clk 0:02:51]}  Nf6 {[%clk 0:02:12]} 4. a3 {[%clk 0:02:47]}  d5 {[%clk 0:02:10]} 5. cxd5 {[%clk 0:02:48]}  Nxd5 {[%clk 0:02:10]} 6. Qc2 {[%clk 0:02:48]}  Be6 {[%clk 0:02:02]} 7. Nf3 {[%clk 0:02:47]}  Be7 {[%clk 0:01:59]} 8. b4 {[%clk 0:02:46]}  Nxc3 {[%clk 0:01:47]} 9. dxc3 {[%clk 0:02:45]}  O-O {[%clk 0:01:43]} 10. e4 {[%clk 0:02:40]}  f5 {[%clk 0:01:38]} 11. Bd3 {[%clk 0:02:40]}  Qd6 {[%clk 0:01:17]} 12. exf5 {[%clk 0:02:36]}  Rad8 {[%clk 0:01:04]} 13. Ke2 {[%clk 0:01:36]}  e4 {[%clk 0:00:49]} 14. Bxe4 {[%clk 0:01:30]}  Bc4+ {[%clk 0:00:49]} 15. Ke1 {[%clk 0:01:30]}  Bf6 {[%clk 0:00:49]} 16. Be3 {[%clk 0:01:26]}  Rfe8 {[%clk 0:00:46]} 17. Nd2 {[%clk 0:01:26]}  Bd3 {[%clk 0:00:16]} 18. Bxd3 {[%clk 0:01:16]}  Qxd3 {[%clk 0:00:17]} 19. Qxd3 {[%clk 0:01:17]}  Rxd3 {[%clk 0:00:18]} 20. Ke2 {[%clk 0:00:28]}  Rxc3 {[%clk 0:00:17]} 21. Rhc1 {[%clk 0:00:29]}  Rcxe3+ {[%clk 0:00:08]} 22. fxe3 {[%clk 0:00:29]}  Bxa1 {[%clk 0:00:08]} 23. Rxa1 {[%clk 0:00:29]}  Nd4+ {[%clk 0:00:09]} 24. Kd3 {[%clk 0:00:25]}  Nxf5 {[%clk 0:00:10]} 25. e4 {[%clk 0:00:26]}  Rd8+ {[%clk 0:00:10]} 26. Kc3 {[%clk 0:00:24]}  Ne3 {[%clk 0:00:11]} 27. g3 {[%clk 0:00:20]}  Kf7 {[%clk 0:00:10]} 28. Re1 {[%clk 0:00:18]}  Ng4 {[%clk 0:00:11]} 29. Nf3 {[%clk 0:00:19]}  h6 {[%clk 0:00:10]} 30. h3 {[%clk 0:00:15]}  Nf6 {[%clk 0:00:09]} 31. Nd4 {[%clk 0:00:15]}  g6 {[%clk 0:00:08]} 32. Rf1 {[%clk 0:00:12]}  Ke7 {[%clk 0:00:07]} 33. Re1 {[%clk 0:00:12]}  Nh5 {[%clk 0:00:07]} 34. Re3 {[%clk 0:00:11]}  Rf8 {[%clk 0:00:06]} 35. Kc4 {[%clk 0:00:09]}  c6 {[%clk 0:00:06]} 36. Nb3 {[%clk 0:00:09]}  Rf1 {[%clk 0:00:05]} 37. Nc5 {[%clk 0:00:09]}  Rc1+ {[%clk 0:00:05]} 38. Kb3 {[%clk 0:00:10]}  b6 {[%clk 0:00:06]} 39. Nd3 {[%clk 0:00:10]}  Rd1 {[%clk 0:00:06]} 40. Ne5 {[%clk 0:00:08]}  Rd6 {[%clk 0:00:06]} 41. Rf3 {[%clk 0:00:07]}  Re6 {[%clk 0:00:03]} 42. Ng4 {[%clk 0:00:05]}  Nf6 {[%clk 0:00:02]} 43. Nxh6 {[%clk 0:00:02]}  Nxe4 {[%clk 0:00:03]} 44. Ng8+ {[%clk 0:00:02]}  Kd6 {[%clk 0:00:03]} 45. h4 {[%clk 0:00:02]}  Kd5 {[%clk 0:00:04]} 46. Nh6 {[%clk 0:00:00]}  Nd2+ {[%clk 0:00:04]} 0-1


[Site "https://www.chess.com"]

[Event "Titled Tuesday Blitz November 07 Early 2023"]
[White "Lamaze, Simon"]
[Black "Donchenko, Alexander"]
[WhiteFideId "36069264"]
[BlackFideId "24603295"]
[WhiteElo "2615"]
[BlackElo "2877"]
[Result "0-1"]
[Round "4"]
[TimeControl "180+1"]
[Date "2023.11.07"]
[WhiteClock "0:00:10"]
[BlackClock "0:01:20"]
[Board "49"]

1. e4 {[%clk 0:03:00]}  c5 {[%clk 0:03:00]} 2. Nf3 {[%clk 0:03:00]}  d6 {[%clk 0:03:00]} 3. d4 {[%clk 0:03:01]}  cxd4 {[%clk 0:03:01]} 4. Nxd4 {[%clk 0:03:02]}  Nf6 {[%clk 0:03:01]} 5. Nc3 {[%clk 0:03:03]}  a6 {[%clk 0:03:02]} 6. b4 {[%clk 0:03:03]}  g6 {[%clk 0:03:01]} 7. Nb3 {[%clk 0:02:59]}  Bg7 {[%clk 0:03:01]} 8. Rb1 {[%clk 0:02:59]}  O-O {[%clk 0:03:00]} 9. Bd2 {[%clk 0:02:59]}  Nc6 {[%clk 0:02:57]} 10. a3 {[%clk 0:02:58]}  b5 {[%clk 0:02:57]} 11. Bd3 {[%clk 0:02:57]}  Bb7 {[%clk 0:02:57]} 12. O-O {[%clk 0:02:58]}  Rc8 {[%clk 0:02:57]} 13. f4 {[%clk 0:02:51]}  e5 {[%clk 0:02:53]} 14. f5 {[%clk 0:02:47]}  Nd4 {[%clk 0:02:50]} 15. Bg5 {[%clk 0:02:37]}  Nxb3 {[%clk 0:02:48]} 16. Rxb3 {[%clk 0:02:33]}  h6 {[%clk 0:02:43]} 17. Be3 {[%clk 0:02:29]}  g5 {[%clk 0:02:35]} 18. h4 {[%clk 0:02:16]}  gxh4 {[%clk 0:02:35]} 19. Qf3 {[%clk 0:02:15]}  Kh8 {[%clk 0:02:33]} 20. Qh3 {[%clk 0:02:11]}  Nh5 {[%clk 0:02:29]} 21. Ne2 {[%clk 0:01:49]}  Rg8 {[%clk 0:02:21]} 22. Qg4 {[%clk 0:01:35]}  Nf6 {[%clk 0:01:48]} 23. Qxh4 {[%clk 0:01:35]}  Nh7 {[%clk 0:01:45]} 24. Qh5 {[%clk 0:01:19]}  Qf6 {[%clk 0:01:39]} 25. Ng3 {[%clk 0:00:51]}  Bf8 {[%clk 0:01:37]} 26. Qf3 {[%clk 0:00:50]}  Ng5 {[%clk 0:01:33]} 27. Qf2 {[%clk 0:00:45]}  d5 {[%clk 0:01:31]} 28. Nh5 {[%clk 0:00:42]}  Qc6 {[%clk 0:01:25]} 29. f6 {[%clk 0:00:10]}  Nh3+ {[%clk 0:01:20]} 0-1


[Site "https://www.chess.com"]